[Event "December 12 Late 2023"]
[Site "https://www.chess.com"]
[Date "2023.12.12"]
[Round "8"]
[White "Kniazev, Igor"]
[Black "youngdinousaur"]
[Result "0-1"]
[Board "106"]
[TimeControl "180+1"]
[WhiteFideId "4136349"]
[WhiteElo "2121"]
[BlackElo "2251"]
[WhiteTeam "RUS"]
[WhiteClock "0:00:04"]
[BlackClock "0:00:21"]

1. e4 {[%clk 0:03:00]}  c5 {[%clk 0:02:59]} 2. Nf3 {[%clk 0:02:58]}  e6 {[%clk 0:02:59]} 3. c3 {[%clk 0:02:59]}  Nc6 {[%clk 0:02:59]} 4. d4 {[%clk 0:02:58]}  d5 {[%clk 0:03:00]} 5. exd5 {[%clk 0:02:50]}  Qxd5 {[%clk 0:02:46]} 6. Be2 {[%clk 0:02:48]}  Nf6 {[%clk 0:02:42]} 7. O-O {[%clk 0:02:47]}  Be7 {[%clk 0:02:41]} 8. Na3 {[%clk 0:02:47]}  cxd4 {[%clk 0:02:35]} 9. Bc4 {[%clk 0:02:22]}  Qd8 {[%clk 0:02:29]} 10. Nb5 {[%clk 0:02:17]}  dxc3 {[%clk 0:02:25]} 11. Qxd8+ {[%clk 0:02:15]}  Bxd8 {[%clk 0:02:20]} 12. Nd6+ {[%clk 0:02:14]}  Ke7 {[%clk 0:02:20]} 13. Rd1 {[%clk 0:02:02]}  Bc7 {[%clk 0:02:14]} 14. Nxc8+ {[%clk 0:01:57]}  Raxc8 {[%clk 0:02:15]} 15. bxc3 {[%clk 0:01:57]}  Rhd8 {[%clk 0:02:13]} 16. Ba3+ {[%clk 0:01:58]}  Ke8 {[%clk 0:02:13]} 17. Bb5 {[%clk 0:01:42]}  Rxd1+ {[%clk 0:02:11]} 18. Rxd1 {[%clk 0:01:41]}  Rd8 {[%clk 0:02:12]} 19. Rxd8+ {[%clk 0:01:36]}  Kxd8 {[%clk 0:02:13]} 20. Nd4 {[%clk 0:01:32]}  Nxd4 {[%clk 0:02:08]} 21. cxd4 {[%clk 0:01:32]}  Bb6 {[%clk 0:02:08]} 22. Bb2 {[%clk 0:01:25]}  Nd5 {[%clk 0:02:06]} 23. Kf1 {[%clk 0:01:24]}  a6 {[%clk 0:02:05]} 24. Bd3 {[%clk 0:01:20]}  g6 {[%clk 0:02:04]} 25. a3 {[%clk 0:01:19]}  Kd7 {[%clk 0:02:01]} 26. g3 {[%clk 0:01:16]}  f5 {[%clk 0:02:00]} 27. Ke2 {[%clk 0:01:15]}  Kd6 {[%clk 0:01:58]} 28. f4 {[%clk 0:01:11]}  Ba7 {[%clk 0:01:49]} 29. a4 {[%clk 0:01:10]}  Nc7 {[%clk 0:01:47]} 30. Bc4 {[%clk 0:01:05]}  b5 {[%clk 0:01:46]} 31. Ba3+ {[%clk 0:01:04]}  Kd7 {[%clk 0:01:43]} 32. axb5 {[%clk 0:01:02]}  axb5 {[%clk 0:01:44]} 33. Bb3 {[%clk 0:00:50]}  Bxd4 {[%clk 0:01:43]} 34. h3 {[%clk 0:00:49]}  Nd5 {[%clk 0:01:32]} 35. Kf3 {[%clk 0:00:43]}  Kc6 {[%clk 0:01:30]} 36. g4 {[%clk 0:00:42]}  Bc5 {[%clk 0:01:25]} 37. Bb2 {[%clk 0:00:39]}  Bd6 {[%clk 0:01:24]} 38. Bc1 {[%clk 0:00:35]}  b4 {[%clk 0:01:21]} 39. h4 {[%clk 0:00:30]}  Kc5 {[%clk 0:01:12]} 40. gxf5 {[%clk 0:00:22]}  gxf5 {[%clk 0:01:10]} 41. Be3+ {[%clk 0:00:22]}  Nxe3 {[%clk 0:01:08]} 42. Kxe3 {[%clk 0:00:22]}  e5 {[%clk 0:01:07]} 43. fxe5 {[%clk 0:00:20]}  Bxe5 {[%clk 0:01:08]} 44. h5 {[%clk 0:00:20]}  h6 {[%clk 0:01:02]} 45. Bf7 {[%clk 0:00:19]}  Kb5 {[%clk 0:01:00]} 46. Bb3 {[%clk 0:00:19]}  Kb6 {[%clk 0:00:56]} 47. Kf3 {[%clk 0:00:19]}  Kc5 {[%clk 0:00:56]} 48. Ke3 {[%clk 0:00:19]}  Kd6 {[%clk 0:00:55]} 49. Kd3 {[%clk 0:00:18]}  Ke7 {[%clk 0:00:54]} 50. Ke3 {[%clk 0:00:18]}  Kf6 {[%clk 0:00:54]} 51. Kf3 {[%clk 0:00:13]}  Kg5 {[%clk 0:00:54]} 52. Bf7 {[%clk 0:00:14]}  Kh4 {[%clk 0:00:48]} 53. Kg2 {[%clk 0:00:12]}  Kg4 {[%clk 0:00:48]} 54. Kf2 {[%clk 0:00:12]}  Kf4 {[%clk 0:00:48]} 55. Ke2 {[%clk 0:00:12]}  Ke4 {[%clk 0:00:48]} 56. Bb3 {[%clk 0:00:09]}  Kd4 {[%clk 0:00:40]} 57. Bc2 {[%clk 0:00:07]}  f4 {[%clk 0:00:36]} 58. Kd2 {[%clk 0:00:07]}  f3 {[%clk 0:00:34]} 59. Bb3 {[%clk 0:00:07]}  Bf4+ {[%clk 0:00:33]} 60. Ke1 {[%clk 0:00:07]}  Bg3+ {[%clk 0:00:31]} 61. Kf1 {[%clk 0:00:07]}  Kc3 {[%clk 0:00:30]} 62. Bd5 {[%clk 0:00:07]}  f2 {[%clk 0:00:28]} 63. Be4 {[%clk 0:00:06]}  b3 {[%clk 0:00:28]} 64. Kg2 {[%clk 0:00:07]}  Bh4 {[%clk 0:00:25]} 65. Bf5 {[%clk 0:00:06]}  b2 {[%clk 0:00:25]} 66. Bb1 {[%clk 0:00:06]}  Kd2 {[%clk 0:00:25]} 67. Kf1 {[%clk 0:00:06]}  Kc1 {[%clk 0:00:25]} 68. Be4 {[%clk 0:00:07]}  b1=Q {[%clk 0:00:26]} 69. Bxb1 {[%clk 0:00:07]}  Kxb1 {[%clk 0:00:27]} 70. Ke2 {[%clk 0:00:08]}  Kc2 {[%clk 0:00:26]} 71. Kf1 {[%clk 0:00:09]}  Kd1 {[%clk 0:00:25]} 72. Kg2 {[%clk 0:00:09]}  Ke1 {[%clk 0:00:25]} 73. Kh2 {[%clk 0:00:09]}  Bg3+ {[%clk 0:00:22]} 74. Kxg3 {[%clk 0:00:06]}  f1=Q {[%clk 0:00:22]} 75. Kg4 {[%clk 0:00:07]}  Qf6 {[%clk 0:00:21]} 76. Kg3 {[%clk 0:00:04]}  Ke2 {[%clk 0:00:21]} 0-1

[Event "December 12 Late 2023"]
[Site "https://www.chess.com"]
[Date "2023.12.12"]
[Round "8"]
[White "De Lima, Valdenicio Marcelino"]
[Black "Stead, Kerry"]
[Result "1-0"]
[Board "107"]
[TimeControl "180+1"]
[WhiteFideId "2132044"]
[BlackFideId "3202577"]
[WhiteElo "2241"]
[BlackElo "2081"]
[WhiteTeam "BRA"]
[BlackTeam "AUS"]
[WhiteClock "0:01:43"]
[BlackClock "0:01:46"]

1. Nf3 {[%clk 0:03:00]}  d5 {[%clk 0:02:54]} 2. d4 {[%clk 0:02:59]}  c5 {[%clk 0:02:53]} 3. e3 {[%clk 0:02:59]}  Nc6 {[%clk 0:02:52]} 4. Be2 {[%clk 0:02:54]}  Bg4 {[%clk 0:02:51]} 5. h3 {[%clk 0:02:54]}  Bxf3 {[%clk 0:02:49]} 6. Bxf3 {[%clk 0:02:54]}  e6 {[%clk 0:02:50]} 7. O-O {[%clk 0:02:52]}  Rb8 {[%clk 0:02:46]} 8. c4 {[%clk 0:02:48]}  cxd4 {[%clk 0:02:36]} 9. cxd5 {[%clk 0:02:47]}  exd5 {[%clk 0:02:34]} 10. exd4 {[%clk 0:02:44]}  Bb4 {[%clk 0:02:28]} 11. Nc3 {[%clk 0:02:41]}  Nge7 {[%clk 0:02:26]} 12. Re1 {[%clk 0:02:38]}  O-O {[%clk 0:02:25]} 13. Bg5 {[%clk 0:02:34]}  h6 {[%clk 0:02:21]} 14. Bh4 {[%clk 0:02:31]}  g5 {[%clk 0:02:18]} 15. Bg3 {[%clk 0:02:31]}  Rc8 {[%clk 0:02:09]} 16. Be5 {[%clk 0:01:54]}  Nxe5 {[%clk 0:02:07]} 17. Rxe5 {[%clk 0:01:54]}  Bxc3 {[%clk 0:02:07]} 18. bxc3 {[%clk 0:01:50]}  Rxc3 {[%clk 0:02:06]} 19. Qe1 {[%clk 0:01:49]}  Ng6 {[%clk 0:02:02]} 20. Qxc3 {[%clk 0:01:48]}  Nxe5 {[%clk 0:01:59]} 21. dxe5 {[%clk 0:01:48]}  Re8 {[%clk 0:01:57]} 22. Rd1 {[%clk 0:01:46]}  Qb6 {[%clk 0:01:46]} 23. Rxd5 {[%clk 0:01:43]} 1-0

[Event "December 12 Late 2023"]
[Site "https://www.chess.com"]
[Date "2023.12.12"]
[Round "8"]
[White "Wang, Alexander J"]
[Black "Reinecke, Katharina"]
[Result "1/2-1/2"]
[Board "108"]
[TimeControl "180+1"]
[WhiteFideId "30955270"]
[BlackFideId "12929727"]
[WhiteElo "2222"]
[BlackElo "2017"]
[WhiteTeam "USA"]
[BlackTeam "GER"]
[WhiteClock "0:00:03"]
[BlackClock "0:00:27"]

1. e4 {[%clk 0:03:00]}  c6 {[%clk 0:02:59]} 2. d4 {[%clk 0:02:55]}  d5 {[%clk 0:02:59]} 3. f3 {[%clk 0:02:54]}  e6 {[%clk 0:02:51]} 4. Nc3 {[%clk 0:02:54]}  Nf6 {[%clk 0:02:51]} 5. Be3 {[%clk 0:02:46]}  Be7 {[%clk 0:02:49]} 6. Nge2 {[%clk 0:02:45]}  O-O {[%clk 0:02:49]} 7. h3 {[%clk 0:02:44]}  b6 {[%clk 0:02:47]} 8. g3 {[%clk 0:02:40]}  Bb7 {[%clk 0:02:45]} 9. Bg2 {[%clk 0:02:35]}  c5 {[%clk 0:02:41]} 10. O-O {[%clk 0:02:35]}  cxd4 {[%clk 0:02:28]} 11. Nxd4 {[%clk 0:02:27]}  dxe4 {[%clk 0:02:28]} 12. fxe4 {[%clk 0:02:22]}  Nc6 {[%clk 0:02:25]} 13. Nde2 {[%clk 0:02:19]}  Ne5 {[%clk 0:02:16]} 14. Bf4 {[%clk 0:02:07]}  Nc4 {[%clk 0:02:11]} 15. b3 {[%clk 0:01:59]}  e5 {[%clk 0:02:00]} 16. Bc1 {[%clk 0:01:53]}  Bc5+ {[%clk 0:01:40]} 17. Kh2 {[%clk 0:01:47]}  Qxd1 {[%clk 0:01:30]} 18. Rxd1 {[%clk 0:01:45]}  Ne3 {[%clk 0:01:30]} 19. Bxe3 {[%clk 0:01:44]}  Bxe3 {[%clk 0:01:30]} 20. Rd3 {[%clk 0:01:44]}  Bc5 {[%clk 0:01:27]} 21. Rad1 {[%clk 0:01:35]}  Rac8 {[%clk 0:01:24]} 22. Nd5 {[%clk 0:01:17]}  Nxd5 {[%clk 0:01:23]} 23. exd5 {[%clk 0:01:18]}  Ba6 {[%clk 0:01:18]} 24. c4 {[%clk 0:01:18]}  b5 {[%clk 0:01:15]} 25. Rc1 {[%clk 0:00:52]}  bxc4 {[%clk 0:01:14]} 26. bxc4 {[%clk 0:00:52]}  Bb4 {[%clk 0:01:07]} 27. Rb3 {[%clk 0:00:43]}  Bxc4 {[%clk 0:00:57]} 28. Rxb4 {[%clk 0:00:39]}  Bxe2 {[%clk 0:00:57]} 29. Rxc8 {[%clk 0:00:38]}  Rxc8 {[%clk 0:00:56]} 30. d6 {[%clk 0:00:38]}  a6 {[%clk 0:00:46]} 31. d7 {[%clk 0:00:22]}  Rd8 {[%clk 0:00:46]} 32. Re4 {[%clk 0:00:17]}  Bb5 {[%clk 0:00:41]} 33. Rxe5 {[%clk 0:00:16]}  Bxd7 {[%clk 0:00:40]} 34. Rd5 {[%clk 0:00:15]}  Kf8 {[%clk 0:00:38]} 35. Rd2 {[%clk 0:00:10]}  Ke7 {[%clk 0:00:37]} 36. Re2+ {[%clk 0:00:02]}  Be6 {[%clk 0:00:37]} 37. Rc2 {[%clk 0:00:01]}  Rd7 {[%clk 0:00:35]} 38. Rb2 {[%clk 0:00:01]}  Rc7 {[%clk 0:00:33]} 39. Rb7 {[%clk 0:00:02]}  Rxb7 {[%clk 0:00:33]} 40. Bxb7 {[%clk 0:00:02]}  Bxa2 {[%clk 0:00:32]} 41. Bxa6 {[%clk 0:00:02]}  Bd5 {[%clk 0:00:32]} 42. Kg1 {[%clk 0:00:02]}  f6 {[%clk 0:00:32]} 43. Kf2 {[%clk 0:00:03]}  h6 {[%clk 0:00:32]} 44. Ke3 {[%clk 0:00:03]}  Be6 {[%clk 0:00:31]} 45. h4 {[%clk 0:00:02]}  Kf7 {[%clk 0:00:30]} 46. Bd3 {[%clk 0:00:03]}  g6 {[%clk 0:00:29]} 47. Kf4 {[%clk 0:00:03]}  g5+ {[%clk 0:00:29]} 48. hxg5 {[%clk 0:00:04]}  hxg5+ {[%clk 0:00:29]} 49. Kf3 {[%clk 0:00:03]}  f5 {[%clk 0:00:27]} 50. Kf2 {[%clk 0:00:03]}  Kf6 {[%clk 0:00:28]} 51. Be2 {[%clk 0:00:02]}  Bd5 {[%clk 0:00:26]} 52. Bd3 {[%clk 0:00:03]}  Be4 {[%clk 0:00:26]} 53. Be2 {[%clk 0:00:02]}  Ke5 {[%clk 0:00:26]} 54. Bc4 {[%clk 0:00:02]}  f4 {[%clk 0:00:26]} 55. gxf4+ {[%clk 0:00:02]}  gxf4 {[%clk 0:00:26]} 56. Bb5 {[%clk 0:00:03]}  Kf5 {[%clk 0:00:27]} 57. Ba6 {[%clk 0:00:03]}  Kg4 {[%clk 0:00:26]} 58. Bb5 {[%clk 0:00:03]}  f3 {[%clk 0:00:25]} 59. Ba6 {[%clk 0:00:03]}  Kf4 {[%clk 0:00:26]} 60. Bb5 {[%clk 0:00:03]}  Bd5 {[%clk 0:00:26]} 61. Ba6 {[%clk 0:00:03]}  Bc6 {[%clk 0:00:26]} 62. Bc4 {[%clk 0:00:04]}  Bd5 {[%clk 0:00:26]} 63. Bxd5 {[%clk 0:00:03]}  Ke5 {[%clk 0:00:27]} 64. Bxf3 {[%clk 0:00:03]} 1/2-1/2

[Event "December 12 Late 2023"]
[Site "https://www.chess.com"]
[Date "2023.12.12"]
[Round "8"]
[White "Floresvillar Gonzalez, Luis Migu"]
[Black "Burke, Paul"]
[Result "1/2-1/2"]
[Board "109"]
[TimeControl "180+1"]
[WhiteFideId "5100542"]
[BlackFideId "2605767"]
[WhiteElo "2219"]
[BlackElo "1851"]
[WhiteTeam "MEX"]
[BlackTeam "CAN"]
[WhiteClock "0:00:37"]
[BlackClock "0:00:17"]

1. e4 {[%clk 0:02:54]}  a6 {[%clk 0:02:56]} 2. Nf3 {[%clk 0:02:53]}  d6 {[%clk 0:02:56]} 3. Bc4 {[%clk 0:02:51]}  e6 {[%clk 0:02:53]} 4. d4 {[%clk 0:02:51]}  h6 {[%clk 0:02:53]} 5. c3 {[%clk 0:02:48]}  g6 {[%clk 0:02:52]} 6. a3 {[%clk 0:02:44]}  Bg7 {[%clk 0:02:52]} 7. h4 {[%clk 0:02:41]}  Ne7 {[%clk 0:02:50]} 8. h5 {[%clk 0:02:41]}  g5 {[%clk 0:02:49]} 9. Nbd2 {[%clk 0:02:30]}  d5 {[%clk 0:02:42]} 10. Bd3 {[%clk 0:02:26]}  dxe4 {[%clk 0:02:36]} 11. Nxe4 {[%clk 0:02:25]}  f5 {[%clk 0:02:24]} 12. Nexg5 {[%clk 0:02:24]}  hxg5 {[%clk 0:02:23]} 13. Bxg5 {[%clk 0:02:23]}  O-O {[%clk 0:02:09]} 14. h6 {[%clk 0:02:21]}  Bf6 {[%clk 0:02:08]} 15. h7+ {[%clk 0:02:14]}  Kh8 {[%clk 0:02:07]} 16. Qe2 {[%clk 0:02:11]}  Nbc6 {[%clk 0:01:56]} 17. O-O-O {[%clk 0:02:09]}  Qd5 {[%clk 0:01:46]} 18. Rh6 {[%clk 0:02:05]}  Bg7 {[%clk 0:01:36]} 19. Rh2 {[%clk 0:01:52]}  b5 {[%clk 0:01:27]} 20. Rdh1 {[%clk 0:01:51]}  Bd7 {[%clk 0:01:07]} 21. Ne5 {[%clk 0:01:47]}  Nxe5 {[%clk 0:00:57]} 22. Bxe7 {[%clk 0:01:40]}  Nxd3+ {[%clk 0:00:55]} 23. Qxd3 {[%clk 0:01:37]}  Rf7 {[%clk 0:00:54]} 24. Bc5 {[%clk 0:01:24]}  e5 {[%clk 0:00:53]} 25. f3 {[%clk 0:01:16]}  Be6 {[%clk 0:00:52]} 26. Rh4 {[%clk 0:00:50]}  Rd8 {[%clk 0:00:30]} 27. Rd1 {[%clk 0:00:47]}  Rfd7 {[%clk 0:00:26]} 28. Bb4 {[%clk 0:00:42]}  Qa2 {[%clk 0:00:20]} 29. Qb1 {[%clk 0:00:38]}  Qb3 {[%clk 0:00:17]} 30. Qc2 {[%clk 0:00:37]}  Qa2 {[%clk 0:00:17]} 31. Qb1 {[%clk 0:00:37]}  Qb3 {[%clk 0:00:17]} 32. Qc2 {[%clk 0:00:37]}  Qa2 {[%clk 0:00:17]} 33. Qb1 {[%clk 0:00:37]} 1/2-1/2

[Event "December 12 Late 2023"]
[Site "https://www.chess.com"]
[Date "2023.12.12"]
[Round "8"]
[White "Vargas, Mauricio"]
[Black "Clarke, Matthew"]
[Result "0-1"]
[Board "110"]
[TimeControl "180+1"]
[WhiteFideId "4404572"]
[BlackFideId "3227804"]
[WhiteElo "1832"]
[BlackElo "2219"]
[WhiteTeam "COL"]
[BlackTeam "AUS"]
[WhiteClock "0:00:00"]
[BlackClock "0:00:32"]

1. e4 {[%clk 0:02:39]}  e5 {[%clk 0:02:59]} 2. Nf3 {[%clk 0:02:39]}  Nc6 {[%clk 0:02:59]} 3. d4 {[%clk 0:02:39]}  exd4 {[%clk 0:02:59]} 4. Bc4 {[%clk 0:02:38]}  Nf6 {[%clk 0:02:45]} 5. e5 {[%clk 0:02:37]}  d5 {[%clk 0:02:42]} 6. Bb5 {[%clk 0:02:37]}  Ne4 {[%clk 0:02:39]} 7. Nxd4 {[%clk 0:02:37]}  Bd7 {[%clk 0:02:37]} 8. Bxc6 {[%clk 0:02:37]}  bxc6 {[%clk 0:02:35]} 9. O-O {[%clk 0:02:32]}  Bc5 {[%clk 0:02:32]} 10. c3 {[%clk 0:02:30]}  O-O {[%clk 0:02:29]} 11. f3 {[%clk 0:02:29]}  Ng5 {[%clk 0:02:28]} 12. f4 {[%clk 0:02:29]}  Ne4 {[%clk 0:02:28]} 13. Nd2 {[%clk 0:02:29]}  Nxd2 {[%clk 0:02:04]} 14. Bxd2 {[%clk 0:02:29]}  f6 {[%clk 0:01:57]} 15. Kh1 {[%clk 0:02:20]}  fxe5 {[%clk 0:01:49]} 16. fxe5 {[%clk 0:02:19]}  Qh4 {[%clk 0:01:32]} 17. e6 {[%clk 0:02:07]}  Bxd4 {[%clk 0:01:30]} 18. exd7 {[%clk 0:02:01]}  Be5 {[%clk 0:01:30]} 19. Rxf8+ {[%clk 0:01:20]}  Rxf8 {[%clk 0:01:28]} 20. Qg1 {[%clk 0:01:18]}  Qg4 {[%clk 0:00:52]} 21. Re1 {[%clk 0:01:14]}  Bd6 {[%clk 0:00:50]} 22. Re8 {[%clk 0:01:08]}  Qxd7 {[%clk 0:00:49]} 23. Rxf8+ {[%clk 0:01:01]}  Kxf8 {[%clk 0:00:49]} 24. Qxa7 {[%clk 0:00:58]}  Qf5 {[%clk 0:00:48]} 25. Qa8+ {[%clk 0:00:49]}  Ke7 {[%clk 0:00:43]} 26. Qa7 {[%clk 0:00:21]}  c5 {[%clk 0:00:34]} 27. Qa6 {[%clk 0:00:00]}  Qb1+ {[%clk 0:00:32]} 0-1

[Event "December 12 Late 2023"]
[Site "https://www.chess.com"]
[Date "2023.12.12"]
[Round "8"]
[White "Omariev, Maksim"]
[Black "Dubreuil, Julien"]
[Result "0-1"]
[Board "111"]
[TimeControl "180+1"]
[WhiteFideId "4193423"]
[BlackFideId "621285"]
[WhiteElo "2453"]
[BlackElo "2295"]
[WhiteTeam "RUS"]
[BlackTeam "FRA"]
[WhiteClock "0:00:05"]
[BlackClock "0:01:01"]

1. g4 {[%clk 0:02:45]}  d5 {[%clk 0:02:54]} 2. Bg2 {[%clk 0:02:38]}  Bxg4 {[%clk 0:02:53]} 3. c4 {[%clk 0:02:38]}  c6 {[%clk 0:02:53]} 4. Qb3 {[%clk 0:02:38]}  Nf6 {[%clk 0:02:43]} 5. Qxb7 {[%clk 0:02:37]}  Nbd7 {[%clk 0:02:43]} 6. Nc3 {[%clk 0:02:26]}  e6 {[%clk 0:02:37]} 7. Qxc6 {[%clk 0:02:26]}  Rc8 {[%clk 0:02:35]} 8. Qa6 {[%clk 0:02:26]}  Rxc4 {[%clk 0:02:32]} 9. b3 {[%clk 0:02:27]}  Rc8 {[%clk 0:02:27]} 10. Ba3 {[%clk 0:02:27]}  Bxa3 {[%clk 0:02:26]} 11. Qxa3 {[%clk 0:02:28]}  Qb6 {[%clk 0:02:23]} 12. h3 {[%clk 0:02:26]}  Bf5 {[%clk 0:02:20]} 13. Na4 {[%clk 0:02:17]}  Qa5 {[%clk 0:02:15]} 14. Nf3 {[%clk 0:02:16]}  Ne4 {[%clk 0:02:12]} 15. O-O {[%clk 0:02:12]}  f6 {[%clk 0:02:07]} 16. Nd4 {[%clk 0:01:57]}  Qxd2 {[%clk 0:02:03]} 17. Nxf5 {[%clk 0:01:54]}  exf5 {[%clk 0:02:03]} 18. Rad1 {[%clk 0:01:50]}  Qa5 {[%clk 0:01:47]} 19. Rd4 {[%clk 0:01:27]}  Kf7 {[%clk 0:01:42]} 20. Rfd1 {[%clk 0:01:25]}  Nb6 {[%clk 0:01:39]} 21. Qb2 {[%clk 0:00:58]}  Rhd8 {[%clk 0:01:21]} 22. Nxb6 {[%clk 0:00:51]}  axb6 {[%clk 0:01:22]} 23. b4 {[%clk 0:00:50]}  Qb5 {[%clk 0:01:19]} 24. Qb3 {[%clk 0:00:50]}  Rc3 {[%clk 0:01:12]} 25. Qb2 {[%clk 0:00:35]}  Rc4 {[%clk 0:01:12]} 26. Rxc4 {[%clk 0:00:29]}  Qxc4 {[%clk 0:01:13]} 27. Rd4 {[%clk 0:00:29]}  Qc3 {[%clk 0:01:03]} 28. Qxc3 {[%clk 0:00:18]}  Nxc3 {[%clk 0:01:04]} 29. Kf1 {[%clk 0:00:18]}  Ke6 {[%clk 0:01:04]} 30. a3 {[%clk 0:00:15]}  Ne4 {[%clk 0:01:02]} 31. Rd3 {[%clk 0:00:12]}  Rc8 {[%clk 0:01:02]} 32. f3 {[%clk 0:00:11]}  Rc1+ {[%clk 0:01:01]} 33. Rd1 {[%clk 0:00:05]}  Rxd1# {[%clk 0:01:01]} 0-1

[Event "December 12 Late 2023"]
[Site "https://www.chess.com"]
[Date "2023.12.12"]
[Round "8"]
[White "Kostiukov, Alexandr"]
[Black "Harrington, Steve"]
[Result "0-1"]
[Board "113"]
[TimeControl "180+1"]
[WhiteFideId "14108100"]
[BlackFideId "2038730"]
[WhiteElo "2344"]
[BlackElo "2121"]
[WhiteTeam "UKR"]
[BlackTeam "USA"]
[WhiteClock "0:00:00"]
[BlackClock "0:00:18"]

1. g3 {[%clk 0:03:00]}  d5 {[%clk 0:02:59]} 2. Bg2 {[%clk 0:03:01]}  Nc6 {[%clk 0:02:59]} 3. d3 {[%clk 0:03:01]}  Bg4 {[%clk 0:02:58]} 4. h3 {[%clk 0:03:00]}  Bh5 {[%clk 0:02:58]} 5. g4 {[%clk 0:03:01]}  Bg6 {[%clk 0:02:57]} 6. f4 {[%clk 0:03:02]}  f6 {[%clk 0:02:54]} 7. f5 {[%clk 0:02:53]}  Bf7 {[%clk 0:02:53]} 8. Nf3 {[%clk 0:02:53]}  g6 {[%clk 0:02:51]} 9. e4 {[%clk 0:02:48]}  dxe4 {[%clk 0:02:52]} 10. dxe4 {[%clk 0:02:49]}  Qxd1+ {[%clk 0:02:51]} 11. Kxd1 {[%clk 0:02:49]}  O-O-O+ {[%clk 0:02:51]} 12. Nbd2 {[%clk 0:02:49]}  e6 {[%clk 0:02:51]} 13. fxe6 {[%clk 0:02:18]}  Bxe6 {[%clk 0:02:52]} 14. Ke2 {[%clk 0:02:16]}  h5 {[%clk 0:02:49]} 15. g5 {[%clk 0:02:13]}  h4 {[%clk 0:02:40]} 16. c3 {[%clk 0:02:10]}  Be7 {[%clk 0:02:36]} 17. Nb3 {[%clk 0:01:34]}  Bc4+ {[%clk 0:02:26]} 18. Kf2 {[%clk 0:01:33]}  Rh5 {[%clk 0:02:02]} 19. gxf6 {[%clk 0:01:23]}  Nxf6 {[%clk 0:02:00]} 20. Re1 {[%clk 0:01:19]}  Nd7 {[%clk 0:01:39]} 21. Nbd4 {[%clk 0:01:12]}  Nde5 {[%clk 0:01:33]} 22. Nxc6 {[%clk 0:01:02]}  Nxc6 {[%clk 0:01:31]} 23. Bf4 {[%clk 0:00:57]}  Rf8 {[%clk 0:01:30]} 24. Be3 {[%clk 0:00:50]}  Ne5 {[%clk 0:01:24]} 25. Red1 {[%clk 0:00:29]}  g5 {[%clk 0:01:18]} 26. Rd4 {[%clk 0:00:22]}  g4 {[%clk 0:01:12]} 27. hxg4 {[%clk 0:00:14]}  Nxg4+ {[%clk 0:01:13]} 28. Kg1 {[%clk 0:00:14]}  Nxe3 {[%clk 0:01:14]} 29. Bh3+ {[%clk 0:00:15]}  Kb8 {[%clk 0:01:11]} 30. Kf2 {[%clk 0:00:15]}  Bc5 {[%clk 0:01:06]} 31. Kxe3 {[%clk 0:00:15]}  Rd8 {[%clk 0:00:38]} 32. Rg1 {[%clk 0:00:12]}  Rhh8 {[%clk 0:00:37]} 33. b3 {[%clk 0:00:11]}  Ba6 {[%clk 0:00:33]} 34. Rg5 {[%clk 0:00:11]}  Bb6 {[%clk 0:00:31]} 35. Rg4 {[%clk 0:00:06]}  c6 {[%clk 0:00:27]} 36. Kd2 {[%clk 0:00:04]}  Bxd4 {[%clk 0:00:26]} 37. cxd4 {[%clk 0:00:05]}  b6 {[%clk 0:00:24]} 38. Ke3 {[%clk 0:00:04]}  Bc8 {[%clk 0:00:23]} 39. e5 {[%clk 0:00:01]}  Bxg4 {[%clk 0:00:21]} 40. Bxg4 {[%clk 0:00:02]}  h3 {[%clk 0:00:21]} 41. Nh2 {[%clk 0:00:02]}  Rdg8 {[%clk 0:00:20]} 42. Kf4 {[%clk 0:00:02]}  Kc7 {[%clk 0:00:20]} 43. Bf3 {[%clk 0:00:00]}  Rh4+ {[%clk 0:00:18]} 0-1

[Event "December 12 Late 2023"]
[Site "https://www.chess.com"]
[Date "2023.12.12"]
[Round "8"]
[White "Gulamirian, Korun"]
[Black "Dilmukhametov, Artur"]
[Result "0-1"]
[Board "116"]
[TimeControl "180+1"]
[WhiteFideId "4144899"]
[BlackFideId "24179922"]
[WhiteElo "2010"]
[BlackElo "2356"]
[WhiteTeam "RUS"]
[BlackTeam "RUS"]
[WhiteClock "0:00:00"]
[BlackClock "0:00:52"]

1. e4 {[%clk 0:02:59]}  c6 {[%clk 0:03:00]} 2. Nc3 {[%clk 0:02:57]}  d5 {[%clk 0:03:00]} 3. Nf3 {[%clk 0:02:57]}  Bg4 {[%clk 0:03:00]} 4. h3 {[%clk 0:02:56]}  Bxf3 {[%clk 0:03:00]} 5. Qxf3 {[%clk 0:02:56]}  e6 {[%clk 0:02:59]} 6. exd5 {[%clk 0:02:53]}  cxd5 {[%clk 0:02:59]} 7. d4 {[%clk 0:02:48]}  Nc6 {[%clk 0:02:59]} 8. Bb5 {[%clk 0:02:46]}  Nf6 {[%clk 0:02:59]} 9. O-O {[%clk 0:02:44]}  Be7 {[%clk 0:02:59]} 10. a3 {[%clk 0:02:40]}  O-O {[%clk 0:02:59]} 11. Bxc6 {[%clk 0:02:39]}  bxc6 {[%clk 0:02:59]} 12. b4 {[%clk 0:02:39]}  a5 {[%clk 0:02:58]} 13. b5 {[%clk 0:02:30]}  Qb6 {[%clk 0:02:48]} 14. bxc6 {[%clk 0:02:23]}  Qxd4 {[%clk 0:02:43]} 15. Bb2 {[%clk 0:02:18]}  Qc5 {[%clk 0:02:33]} 16. Ne2 {[%clk 0:01:54]}  Qxc2 {[%clk 0:02:26]} 17. Bxf6 {[%clk 0:01:47]}  Bxf6 {[%clk 0:02:25]} 18. Rac1 {[%clk 0:01:47]}  Qa4 {[%clk 0:02:25]} 19. Rfd1 {[%clk 0:01:27]}  Rfc8 {[%clk 0:02:22]} 20. c7 {[%clk 0:01:26]}  Qd7 {[%clk 0:02:13]} 21. Ng3 {[%clk 0:01:06]}  Rxc7 {[%clk 0:02:09]} 22. Ne4 {[%clk 0:01:04]}  Be5 {[%clk 0:01:44]} 23. Nc5 {[%clk 0:00:59]}  Qd6 {[%clk 0:01:24]} 24. Ne4 {[%clk 0:00:43]}  dxe4 {[%clk 0:01:22]} 25. Rxc7 {[%clk 0:00:38]}  exf3 {[%clk 0:01:10]} 26. Rxd6 {[%clk 0:00:32]}  Bxd6 {[%clk 0:01:10]} 27. Rc3 {[%clk 0:00:30]}  fxg2 {[%clk 0:01:04]} 28. Kxg2 {[%clk 0:00:28]}  g6 {[%clk 0:01:02]} 29. h4 {[%clk 0:00:19]}  h5 {[%clk 0:01:02]} 30. Kf3 {[%clk 0:00:15]}  Kg7 {[%clk 0:01:00]} 31. Ke4 {[%clk 0:00:16]}  Be7 {[%clk 0:00:57]} 32. f4 {[%clk 0:00:04]}  Bxh4 {[%clk 0:00:56]} 33. a4 {[%clk 0:00:02]}  Rb8 {[%clk 0:00:55]} 34. Rc4 {[%clk 0:00:00]}  Rb4 {[%clk 0:00:52]} 0-1